bitfinex-derivatives/quotes_SOLF0:USTF0_20251108
["timestamp","ask_amount","ask_price","bid_price","bid_amount"]
[1762617962506,5.7481,156.63,156.58,3.19]
[1762617963310,5.7485,156.62,156.58,3.19]
[1762617963518,0.04812098,156.62,156.58,3.23179237]
[1762617965007,5.79662098,156.62,156.58,3.23179237]
[1762617965214,0.04812098,156.62,156.58,3.23179237]
[1762617967814,5.7492,156.6,156.58,0.04179237]
[1762617972120,5.7513,156.54,156.5,3.19]
[1762617973021,4.59799689,156.64,156.47,3.19]
[1762617973022,5.7518,156.53,156.47,3.19]
[1762617973229,0.04499416,156.52,156.48,3.23589052]
[1762617973422,0.04232231,156.52,156.48,3.23347474]
[1762617973933,5.7524,156.51,156.48,0.04347474]
[1762617975722,0.04232231,156.52,156.48,3.23347474]
[1762617976221,0.04232231,156.52,156.48,8.98677474]
[1762617976429,0.04232231,156.52,156.49,3.19]
[1762617976613,11.4946,156.65,156.49,3.19]
[1762617976927,11.4946,156.65,156.42,11.5108]
[1762617976928,11.4946,156.65,156.53,3.19]
[1762617977521,0.0414254,156.61,156.57,3.23714355]
[1762617977825,0.04692893,156.61,156.57,0.04767354]
[1762617978221,5.7492,156.6,156.57,0.04767354]
[1762617978935,0.04692893,156.61,156.57,3.23767354]
[1762617980026,0.04692893,156.61,156.57,0.04767354]
[1762617980215,0.04692893,156.61,156.57,3.23767354]
[1762617983833,0.04692893,156.61,156.57,0.04767354]
[1762617984638,5.7496,156.59,156.57,0.04767354]
[1762617993034,5.751,156.55,156.49,3.23]
[1762617993838,5.7514,156.54,156.49,3.23]
[1762617994027,0.04518229,156.53,156.5,0.04763753]
[1762617994232,5.80107722,156.53,156.5,0.04794967]
[1762617994432,0.04907722,156.53,156.5,0.04794967]
[1762617995832,5.7521,156.52,156.5,0.04794967]
[1762618001439,5.7521,156.52,156.5,3.27794967]
[1762618001639,5.7521,156.52,156.5,0.04794967]
[1762618004039,22.0,156.6,156.5,0.04794967]
[1762618004040,27.91421978,156.64,156.51,2.94]
[1762618004236,105.09030806,156.72,156.51,2.94]
[1762618004237,4.6183226,156.63,156.51,2.94]
[1762618004436,4.6183226,156.68,156.51,2.94]
[1762618004633,5.91421978,156.69,156.54,2.94]
[1762618004846,4.6183226,156.68,156.54,2.94]
[1762618005342,5.91421978,156.69,156.59,0.04733871]
[1762618005343,0.04322052,156.63,156.59,0.04733871]
[1762618005542,0.04322052,156.63,156.59,0.04502277]
[1762618005948,5.7484,156.62,156.59,0.04502277]
[1762618007744,5.7491,156.6,156.59,0.04502277]
[1762618007941,0.04322052,156.63,156.51,2.94]
[1762618008142,4.6183226,156.64,156.51,2.94]
[1762618008338,4.6183226,156.65,156.51,2.94]
[1762618008643,5.7503,156.57,156.51,2.94]
[1762618008938,5.79740679,156.56,156.52,2.98815874]
[1762618009144,5.79232616,156.56,156.52,2.98090346]
[1762618010045,5.79232616,156.56,156.52,0.04090346]
[1762618011151,5.79232616,156.56,156.52,2.98090346]
[1762618011551,0.04162616,156.56,156.52,2.98090346]
[1762618013053,0.04162616,156.56,156.52,8.73280346]
[1762618013254,0.04162616,156.56,156.52,2.98090346]
[1762618013958,0.04162616,156.56,156.55,2.94]
[1762618015262,0.04162616,156.56,156.53,2.94]
[1762618020168,0.04162616,156.56,156.52,0.04090346]
[1762618020864,5.7514,156.54,156.52,0.04090346]
[1762618023762,5.7514,156.54,156.46,7.91732976]
[1762618023763,5.7528,156.5,156.46,7.91732976]
[1762618023972,5.91421978,156.58,156.43,2.96]
[1762618024473,5.7532,156.49,156.43,2.96]
[1762618024765,0.04062032,156.48,156.44,3.00479767]
[1762618025861,5.7515,156.54,156.46,2.96]
[1762618026064,22.0,156.59,156.46,2.96]
[1762618026272,22.0,156.58,156.44,7.91732976]
[1762618026571,5.7534,156.49,156.43,2.96]
[1762618026970,0.04667218,156.48,156.44,3.00297615]
[1762618027179,5.79621747,156.48,156.44,3.00188092]
[1762618027364,0.04261747,156.48,156.44,0.04188092]
[1762618027561,5.79611747,156.48,156.44,3.00188092]
[1762618028078,0.04261747,156.48,156.44,3.00188092]
[1762618028266,5.754,156.47,156.44,3.00188092]
[1762618029077,5.7544,156.46,156.44,0.04188092]
[1762618029267,0.04261747,156.48,156.38,7.91732976]
[1762618029469,11.504,156.53,156.38,2.96]
[1762618029470,19.19,156.53,156.38,2.96]
[1762618029663,22.0,156.52,156.38,2.96]
[1762618029869,11.5049,156.51,156.38,2.96]
[1762618030273,5.7555,156.43,156.38,2.96]
[1762618030669,0.04917584,156.42,156.39,3.00672512]
[1762618030870,0.04917584,156.42,156.39,0.04672512]
[1762618031769,5.7562,156.41,156.39,0.04672512]
[1762618032276,0.04917584,156.42,156.32,2.96]
[1762618032464,19.19,156.46,156.32,2.96]
[1762618033068,0.0428697,156.41,156.37,0.04644222]
[1762618033370,0.0428697,156.41,156.37,3.00712823]
[1762618034978,5.7990697,156.41,156.37,3.00712823]
[1762618035579,5.7990697,156.41,156.37,0.04712823]
[1762618035580,5.757,156.39,156.37,0.04712823]
[1762618036971,0.0428697,156.41,156.29,2.96]
[1762618037174,19.19,156.44,156.29,2.96]
[1762618037973,0.0461747,156.38,156.35,0.04518013]
[1762618038370,5.7594,156.32,156.26,2.96]
[1762618039373,0.04424198,156.31,156.26,2.96]
[1762618040570,0.04424198,156.31,156.21,2.96]
[1762618040775,0.04591387,156.28,156.21,2.96]
[1762618040965,0.04843813,156.26,156.21,2.96]
[1762618041168,11.5145,156.38,156.23,2.96]
[1762618041878,5.76,156.31,156.23,2.96]
[1762618042178,11.5145,156.38,156.24,2.96]
[1762618042373,5.7599,156.31,156.26,2.96]
[1762618042577,5.7599,156.31,156.29,0.04563525]
[1762618043078,0.04600467,156.33,156.29,0.04563525]
[1762618043280,0.04600467,156.33,156.29,3.00563525]
[1762618043473,0.04600467,156.33,156.29,0.04563525]
[1762618043978,5.7595,156.32,156.29,0.04563525]
[1762618044278,0.04600467,156.33,156.29,0.04563525]
[1762618044483,0.04600467,156.33,156.29,3.00563525]
[1762618045368,0.04600467,156.33,156.29,0.04563525]
[1762618046074,5.80520467,156.33,156.29,0.04563525]
[1762618046382,0.04600467,156.33,156.29,0.04563525]
[1762618047773,5.7599,156.31,156.29,0.04563525]
[1762618049185,0.04600467,156.33,156.29,0.04563525]
[1762618049385,0.04600467,156.33,156.29,3.00563525]
[1762618049581,0.04600467,156.33,156.29,0.04563525]
[1762618049783,5.7599,156.31,156.29,0.04563525]
[1762618051276,5.7599,156.31,156.29,3.17563525]
[1762618051485,5.80530467,156.33,156.29,3.17563525]
[1762618051885,0.04600467,156.33,156.29,3.17563525]
[1762618053285,0.04600467,156.33,156.29,0.04563525]
[1762618054086,5.7598,156.31,156.29,0.04563525]
[1762618055380,0.04600467,156.33,156.23,3.13]
[1762618055679,19.19,156.38,156.23,3.13]
[1762618056192,19.19,156.36,156.23,3.13]
[1762618056385,0.0424496,156.31,156.2,3.13]
[1762618056686,5.7626,156.24,156.2,3.13]
[1762618056892,5.80572412,156.24,156.2,3.13]
[1762618057593,0.04312412,156.24,156.2,3.13]
[1762618058877,0.04312412,156.24,156.2,8.8937]
[1762618059093,0.04312412,156.24,156.21,3.13]
[1762618061799,0.04312412,156.24,156.21,8.8932]
[1762618062096,0.04312412,156.24,156.22,3.13]
[1762618064383,0.04312412,156.24,156.17,3.13]
[1762618066192,5.764,156.2,156.17,3.13]
[1762618066396,5.810743,156.2,156.17,3.13]
[1762618066593,0.046743,156.2,156.17,3.13]
[1762618067391,0.046743,156.2,156.14,3.13]
[1762618067590,5.810643,156.2,156.14,3.13]
[1762618067997,5.7642,156.19,156.14,3.13]
[1762618070299,5.7646,156.18,156.14,3.13]
[1762618071400,0.046743,156.2,156.11,3.13]
[1762618071401,5.810743,156.2,156.11,3.13]
[1762618071602,0.04705598,156.17,156.11,3.13]
[1762618071896,0.04156429,156.16,156.11,3.13]
[1762618072101,0.04745736,156.15,156.11,3.13]
[1762618072303,0.0464459,156.15,156.11,8.8969]
[1762618072497,0.0464459,156.15,156.12,3.13]
[1762618074207,0.0464459,156.15,156.12,8.8967]
[1762618074404,0.0464459,156.15,156.13,3.13]
[1762618077102,12.63701695,156.27,156.13,3.13]
[1762618077606,5.7621,156.25,156.18,3.13]
[1762618078007,1.11408128,156.3,156.18,3.13]
[1762618078210,0.04886238,156.23,156.21,3.13]
[1762618078400,107.01530088,156.34,156.21,3.13]
[1762618078401,81.9,156.34,156.21,3.13]
[1762618079410,19.19,156.38,156.21,3.13]
[1762618079606,0.04359624,156.29,156.26,0.04498252]
[1762618079807,0.0472894,156.29,156.26,0.04260295]
[1762618080415,1.3272894,156.29,156.18,3.13]
[1762618080605,7.03897215,156.34,156.18,3.13]
[1762618080906,5.92530088,156.33,156.18,3.13]
[1762618081216,11.5198,156.31,156.18,3.13]
[1762618081413,0.0453416,156.26,156.23,0.04314491]
[1762618082412,5.7621,156.25,156.23,0.04314491]
[1762618083511,7.0421,156.25,156.23,0.04314491]
[1762618084113,5.7634,156.22,156.15,3.06]
[1762618084315,17.44510088,156.31,156.15,3.06]
[1762618084503,11.5198,156.31,156.15,3.06]
[1762618084707,11.5203,156.3,156.15,3.06]
[1762618085305,0.04243446,156.24,156.15,3.06]
[1762618085817,0.04243446,156.24,156.17,3.06]
[1762618086014,0.0469326,156.22,156.17,3.06]
[1762618086312,0.04564838,156.21,156.17,3.06]
[1762618086506,0.04385847,156.21,156.17,3.06]
[1762618088316,0.04385847,156.21,156.18,3.06]
[1762618091818,5.7624,156.24,156.18,3.06]
[1762618092017,11.5206,156.3,156.19,3.06]
[1762618092314,11.5211,156.29,156.19,3.06]
[1762618092911,0.0427525,156.26,156.22,3.10618235]
[1762618093410,5.7624,156.24,156.22,3.10618235]
[1762618094214,7.0424,156.24,156.22,0.04618235]
[1762618094412,1.28,156.24,156.16,3.06]
[1762618094611,11.5225,156.27,156.16,3.06]
[1762618095020,5.7641,156.2,156.16,3.06]
[1762618095313,5.81181197,156.2,156.16,3.06]
[1762618095921,5.7644,156.19,156.16,3.06]
[1762618096221,0.04771197,156.2,156.16,3.06]
[1762618096521,0.04771197,156.2,156.12,3.06]
[1762618097116,0.04771197,156.2,156.12,10.89025812]
[1762618097415,0.04771197,156.2,156.13,3.06]
[1762618097716,0.04771197,156.2,156.15,3.06]
[1762618098112,0.04771197,156.2,156.16,3.06]
[1762618099211,0.04771197,156.2,156.18,3.06]
[1762618099415,17.44510088,156.31,156.18,3.06]
[1762618099416,0.04255375,156.21,156.18,3.06]
[1762618099618,11.5198,156.31,156.18,3.06]
[1762618099818,5.7624,156.24,156.18,3.06]
[1762618100119,0.04503048,156.23,156.18,3.06]
[1762618101720,5.80783048,156.23,156.18,3.06]
[1762618102112,0.04503048,156.23,156.18,3.06]
[1762618102516,0.04503048,156.23,156.2,3.06]
[1762618107617,5.7614,156.27,156.21,3.06]
[1762618107816,5.7614,156.27,156.22,3.06]
[1762618108221,22.0,156.31,156.22,3.06]
[1762618108614,0.04537212,156.28,156.25,0.04358907]
[1762618109424,0.04537212,156.28,156.25,3.10358907]
[1762618110527,0.04537212,156.28,156.25,0.04358907]
[1762618111622,5.7613,156.27,156.25,0.04358907]
[1762618112330,1.28,156.26,156.17,3.21]
[1762618112523,25.11530088,156.29,156.17,3.21]
[1762618112932,25.11530088,156.29,156.14,11.04025812]
[1762618113231,0.04832238,156.23,156.14,3.21]
[1762618113633,0.04832238,156.23,156.11,11.04025812]
[1762618113834,0.04420533,156.19,156.11,11.04025812]
[1762618114032,5.765,156.17,156.12,3.21]
[1762618114333,0.04420533,156.19,156.12,3.21]
[1762618114731,5.766,156.15,156.09,3.21]
[1762618114923,0.04128846,156.14,156.09,3.21]
[1762618115231,0.04130429,156.13,156.06,11.04025812]
[1762618115421,0.04130429,156.13,156.06,3.21]
[1762618115619,5.7671,156.12,156.06,3.21]
[1762618116234,5.7673,156.11,156.06,3.21]
[1762618116430,0.04130429,156.13,156.06,3.21]
[1762618116827,5.80800429,156.13,156.06,3.21]
[1762618118530,5.767,156.12,156.06,3.21]
[1762618118933,0.04130429,156.13,156.06,3.21]
[1762618119131,5.7675,156.1,156.06,3.21]
[1762618119334,5.81005516,156.1,156.06,3.21]
[1762618121746,5.7684,156.08,156.03,3.21]
[1762618122038,0.04255516,156.1,156.03,3.21]
[1762618123038,0.04255516,156.1,155.99,3.21]
[1762618123233,0.04793899,156.06,155.99,3.21]
[1762618123436,0.04079506,156.04,155.99,3.21]
[1762618123738,0.04445914,156.03,155.99,3.21]
[1762618124033,0.0471648,156.03,155.99,3.21]
[1762618126931,5.8173648,156.03,155.99,3.21]
[1762618128439,5.7706,156.02,155.99,3.21]
[1762618129138,5.771,156.01,155.99,3.21]
[1762618129844,5.771,156.01,155.95,3.14]
[1762618130038,0.04043141,156.0,155.95,3.14]
[1762618130238,0.04638001,155.99,155.95,3.14]
[1762618130543,0.04294656,155.99,155.95,3.14]
[1762618138244,0.04294656,155.99,155.95,8.9128]
[1762618138443,5.94932483,156.19,155.96,3.14]
[1762618138648,95.60192483,156.22,155.97,3.14]
[1762618138948,89.6723,156.18,156.0,3.14]
[1762618139337,5.766,156.14,156.07,0.04232611]
[1762618139650,0.04752105,156.11,156.09,0.04517534]
[1762618139839,0.04752105,156.11,156.08,0.04720381]
[1762618140143,5.769,156.07,156.0,3.14]
[1762618140350,0.04923807,156.05,156.02,0.04798471]
[1762618140546,0.04223405,156.05,156.02,0.04317709]
[1762618140744,0.04223405,156.05,156.02,3.18317709]
[1762618141443,5.81163405,156.05,156.02,0.04317709]
[1762618141643,0.04223405,156.05,156.02,3.20317709]
[1762618142041,5.81163405,156.05,156.02,3.20317709]
[1762618142441,5.81163405,156.05,156.02,0.04317709]
[1762618142442,0.04223405,156.05,156.02,0.04317709]
[1762618142852,5.7698,156.04,156.02,0.04317709]
[1762618143856,0.04223405,156.05,155.95,3.16]
[1762618144154,11.5365,156.08,155.95,3.16]
[1762618144355,5.7713,156.0,155.95,3.16]
[1762618144552,19.24,156.08,155.95,3.16]
[1762618144847,0.04701865,156.03,155.95,3.16]
[1762618145042,5.7716,155.99,155.95,3.16]
[1762618145241,0.04480592,155.99,155.95,3.16]
[1762618146354,5.772,155.98,155.95,3.16]
[1762618146854,0.04480592,155.99,155.95,3.16]
[1762618147659,5.772,155.98,155.95,3.16]
[1762618148057,0.04480592,155.99,155.95,3.16]
[1762618148253,0.04480592,155.99,155.91,5.339e-05]
[1762618148852,5.7731,155.95,155.91,5.339e-05]
[1762618149053,5.82243392,155.95,155.91,5.339e-05]
[1762618149359,0.04933392,155.95,155.91,5.339e-05]
[1762618150057,5.82253392,155.95,155.91,5.339e-05]
[1762618150754,5.7736,155.94,155.91,5.339e-05]
[1762618150954,1.28,155.94,155.82,3.16]
[1762618151157,0.04703178,155.9,155.82,3.16]
[1762618152269,0.04703178,155.9,155.85,3.16]
[1762618152468,0.04416976,155.89,155.85,3.16]
[1762618152778,0.04416976,155.89,155.85,8.9365]
[1762618153078,0.04416976,155.89,155.86,3.16]
[1762618153974,11.5422,156.01,155.87,3.16]
[1762618154878,5.7736,155.94,155.87,3.16]
[1762618155078,0.04534167,155.92,155.9,3.16]
[1762618156169,0.04534167,155.92,155.89,0.04690827]
[1762618157069,5.81974167,155.92,155.89,0.04690827]
[1762618157667,5.7747,155.91,155.89,0.04690827]
[1762618158070,0.04534167,155.92,155.78,3.16]
[1762618158375,5.7754,155.89,155.79,3.16]
[1762618158573,4.60755134,155.94,155.79,3.16]
[1762618158770,4.60755134,155.93,155.79,3.16]
[1762618158969,0.0418953,155.88,155.79,3.16]
[1762618159170,5.7766,155.86,155.79,3.16]
[1762618159472,0.04663062,155.84,155.75,3.16]
[1762618159775,0.04282922,155.81,155.75,3.16]
[1762618160975,0.04282922,155.81,155.78,3.16]
[1762618161176,0.04899242,155.81,155.78,3.16]
[1762618161368,0.04899242,155.81,155.8,3.16]
[1762618161565,5.7757,155.88,155.8,3.16]
[1762618161566,0.04348594,155.82,155.8,3.16]
[1762618161776,0.04629536,155.83,155.8,3.16]
[1762618161977,0.04205166,155.83,155.8,3.16]
[1762618162381,5.7756,155.89,155.8,3.16]
[1762618162678,107.21013679,155.97,155.8,3.16]
[1762618162872,9.39146283,155.95,155.8,3.16]
[1762618163071,22.0,155.94,155.8,3.16]
[1762618163267,5.81933965,155.89,155.85,0.04239212]
[1762618163478,0.04373965,155.89,155.85,3.20239212]
[1762618164276,0.04373965,155.89,155.85,0.04239212]
[1762618164482,5.7758,155.88,155.85,0.04239212]
[1762618164777,0.04373965,155.89,155.85,0.04239212]
[1762618165876,5.81923965,155.89,155.85,0.04239212]
[1762618166275,0.04373965,155.89,155.85,3.20239212]
[1762618167675,5.91013679,156.06,155.87,3.16]
[1762618167975,4.61189642,156.07,155.91,3.16]
[1762618168181,5.7696,156.05,155.95,3.16]
[1762618168369,4.61189642,156.06,155.95,3.16]
[1762618168576,0.04417569,156.02,155.99,0.04931606]
[1762618168978,5.7711,156.01,155.99,0.04931606]
[1762618169975,0.04417569,156.02,155.99,0.04931606]
[1762618171079,5.81487569,156.02,155.99,0.04931606]
[1762618172579,0.04417569,156.02,155.99,2.98931606]
[1762618181293,5.61582228,156.09,156.0,2.94]
[1762618182292,5.7696,156.05,156.03,0.04083651]
[1762618182595,5.7696,156.05,156.03,2.98083651]
[1762618183196,0.040412,156.06,156.03,2.98083651]
[1762618183895,5.7695,156.05,156.03,0.04083651]
[1762618184089,0.040412,156.06,156.03,3.26083651]
[1762618187090,0.040412,156.06,156.04,3.22]
[1762618187293,5.61582228,156.13,156.04,3.22]
[1762618187989,5.61582228,156.13,156.06,3.22]
[1762618188698,5.61582228,156.13,155.99,15.06]
[1762618188699,5.61582228,156.13,156.0,3.22]
[1762618189393,5.7678,156.1,156.01,3.22]
[1762618189989,5.61582228,156.13,156.04,3.22]
[1762618190702,5.61582228,156.17,156.04,3.22]
[1762618191303,5.7665,156.13,156.07,3.22]
[1762618191998,5.7665,156.13,156.08,3.22]
[1762618192400,5.61582228,156.19,156.08,3.22]
[1762618192703,0.04822594,156.15,156.12,3.26559765]
[1762618192897,5.81402594,156.15,156.12,3.26559765]
[1762618193800,0.04822594,156.15,156.12,3.26559765]
[1762618195301,5.81402594,156.15,156.12,3.26559765]
[1762618195897,0.04822594,156.15,156.12,3.26559765]
[1762618197601,0.04822594,156.15,156.12,9.03219765]
[1762618197801,0.04822594,156.15,156.12,3.26559765]
[1762618201606,5.81402594,156.15,156.12,3.26559765]
[1762618201904,0.04822594,156.15,156.12,0.04559765]
[1762618202696,0.04822594,156.15,156.12,3.21559765]
[1762618203399,0.04822594,156.15,156.12,0.04559765]
[1762618203604,5.61582228,156.14,156.12,0.04559765]
[1762618203908,0.04822594,156.15,156.12,0.04559765]
[1762618205200,0.04822594,156.15,156.12,3.21559765]
[1762618205798,5.61582228,156.23,156.12,3.21559765]
[1762618206002,11.5214,156.29,156.12,3.17]
[1762618206203,5.61582228,156.25,156.12,3.17]
[1762618206910,0.0457371,156.2,156.18,3.17]
[1762618208012,5.61582228,156.28,156.18,3.17]
[1762618209216,5.61582228,156.28,156.21,3.21687692]
[1762618209217,0.04209792,156.25,156.21,3.21687692]
[1762618209521,5.7629,156.23,156.21,0.04687692]
[1762618211115,0.04519116,156.25,156.21,3.21687692]
[1762618212010,0.04519116,156.25,156.22,3.17]
[1762618213321,5.61582228,156.34,156.22,3.17]
[1762618214214,0.04741012,156.3,156.27,3.17]
[1762618214415,0.04741012,156.3,156.26,0.04760704]
[1762618214416,0.04741012,156.3,156.26,3.21760704]
[1762618215316,0.04741012,156.3,156.26,8.97900704]
[1762618215518,0.04741012,156.3,156.27,3.17]
[1762618217213,0.04741012,156.3,156.29,3.17]
[1762618217817,5.758,156.36,156.29,3.17]
[1762618218013,5.758,156.36,156.3,3.17]
[1762618218219,5.7586,156.35,156.3,3.17]
[1762618218915,0.04060219,156.34,156.31,3.21863904]
[1762618219115,0.04462948,156.34,156.31,3.21896552]
[1762618220922,5.80352948,156.34,156.31,0.04896552]
[1762618221219,0.04462948,156.34,156.31,0.04896552]
[1762618221612,5.7592,156.33,156.31,0.04896552]
[1762618221922,0.04462948,156.34,156.31,3.21896552]
[1762618226429,0.04462948,156.34,156.32,3.17]
[1762618228128,5.80342948,156.34,156.32,3.17]
[1762618228624,0.04462948,156.34,156.32,3.17]
[1762618231220,0.04462948,156.34,156.31,0.04896552]
[1762618232030,5.7591,156.33,156.31,3.01896552]
[1762618233329,5.7591,156.33,156.31,0.04896552]
[1762618234234,9.32999459,156.33,156.24,2.97]
[1762618234934,5.7604,156.3,156.24,2.97]
[1762618235231,0.04838822,156.29,156.26,2.97]
[1762618237834,5.761,156.28,156.26,2.97]
[1762618238244,0.04838822,156.29,156.26,2.97]
[1762618241742,0.04838822,156.29,156.27,5.7611]
[1762618241944,9.32999459,156.39,156.28,2.97]
[1762618242342,5.7583,156.35,156.28,2.97]
[1762618242540,5.7583,156.35,156.31,2.97]
[1762618242943,5.80138933,156.35,156.31,3.01721679]
[1762618244344,5.7588,156.34,156.31,3.01721679]
[1762618244545,0.04308933,156.35,156.31,3.01721679]
[1762618244845,5.7593,156.33,156.31,0.04721679]
[1762618251159,4.69110841,156.32,156.31,0.04721679]
[1762618252357,8.46131522,156.32,156.31,0.04721679]
[1762618252752,3.81329614,156.35,156.31,0.04721679]
[1762618252953,4.69515509,156.34,156.31,0.04721679]
[1762618253162,4.69515509,156.33,156.31,0.04721679]
[1762618253355,4.6960914,156.32,156.31,0.04721679]
[1762618253958,5.7591,156.33,156.31,0.04721679]
[1762618254465,4.69798836,156.32,156.31,0.04721679]
[1762618258057,0.04308933,156.35,156.31,3.20721679]
[1762618258449,4.70472409,156.34,156.31,3.20721679]
[1762618258647,5.80148933,156.35,156.31,3.20721679]
[1762618258853,0.04308933,156.35,156.31,3.20721679]
[1762618259050,4.70474079,156.34,156.31,3.20721679]
[1762618259357,0.04308933,156.35,156.31,3.20721679]
[1762618260564,5.7566,156.4,156.34,3.16]
[1762618260763,4.65652338,156.39,156.34,3.16]
[1762618260960,5.7566,156.4,156.34,3.16]
[1762618261167,15.30616717,156.46,156.35,3.16]
[1762618261373,12.61915216,156.49,156.36,3.14]
[1762618261374,7.0847985,156.49,156.36,3.14]
[1762618261554,0.04491376,156.42,156.39,0.04216517]
[1762618261865,0.04419348,156.42,156.39,0.04399559]
[1762618262064,5.80009348,156.42,156.39,0.04399559]
[1762618262254,0.04419348,156.42,156.39,0.04399559]
[1762618263160,5.7563,156.41,156.39,0.04399559]
[1762618265670,0.04419348,156.42,156.39,0.04399559]
[1762618266275,0.04419348,156.42,156.39,3.18399559]
[1762618267076,5.7544,156.46,156.39,3.18399559]
[1762618267077,81.94,156.5,156.39,3.18399559]
[1762618267263,81.94,156.5,156.39,3.14]
[1762618267574,22.0,156.51,156.42,3.14]
[1762618267781,27.97194634,156.55,156.42,3.14]
[1762618268071,0.04812449,156.5,156.47,0.04305265]
[1762618268371,5.7536,156.48,156.47,0.04305265]
[1762618269974,5.7536,156.48,156.47,0.00305265]
[1762618270166,5.7559,156.42,156.39,3.14]
[1762618270472,22.0,156.52,156.35,3.14]
[1762618270668,22.0,156.51,156.35,3.14]
[1762618270866,5.7558,156.42,156.35,3.14]
[1762618271267,5.7558,156.42,156.37,3.18558549]
[1762618271268,0.04922922,156.4,156.37,3.18558549]
[1762618272876,0.04922922,156.4,156.37,0.04558549]
[1762618273670,5.757,156.39,156.37,0.04558549]
[1762618273871,5.757,156.39,156.37,3.18558549]
[1762618274380,5.757,156.39,156.37,0.04558549]
[1762618275373,0.04922922,156.4,156.37,3.18558549]
[1762618276478,5.80582922,156.4,156.37,3.18558549]
[1762618277074,0.04922922,156.4,156.37,3.18558549]
[1762618277777,5.80582922,156.4,156.37,0.04558549]
[1762618277979,5.80582922,156.4,156.37,3.18558549]
[1762618278573,0.04922922,156.4,156.37,3.18558549]
[1762618279483,22.0,156.46,156.37,3.18558549]
[1762618279779,22.0,156.5,156.37,3.18558549]
[1762618279977,22.0,156.49,156.37,3.14]
[1762618280681,0.04378805,156.45,156.42,3.14]
[1762618281687,11.502,156.55,156.43,3.14]
[1762618282383,5.7537,156.48,156.43,3.14]
[1762618282682,0.04670199,156.47,156.44,3.18208357]
[1762618283182,0.04670199,156.47,156.44,0.04208357]
[1762618283878,5.7543,156.46,156.44,0.04208357]
[1762618294184,5.7571,156.39,156.32,8.7091]
[1762618294391,5.57360856,156.45,156.33,2.95]
[1762618295093,11.51,156.44,156.33,2.95]
[1762618295285,0.04137681,156.4,156.37,0.04235427]
[1762618296197,5.7572,156.38,156.37,0.04235427]
[1762618302298,8.16816814,156.38,156.37,0.04235427]
[1762618302599,5.7595,156.32,156.28,5.36096814]
[1762618302800,2.41096814,156.36,156.28,2.95]
[1762618303696,2.45953135,156.34,156.3,0.04662877]
[1762618304289,0.04856321,156.34,156.3,0.04662877]
[1762618305401,5.7596,156.32,156.3,0.04662877]
[1762618309102,5.7596,156.32,156.3,3.06662877]
[1762618309903,0.04856321,156.34,156.3,3.06662877]
[1762618311910,64.72,156.43,156.3,4.34662877]
[1762618312104,5.7571,156.39,156.33,3.02]
[1762618312507,64.72,156.43,156.33,3.02]
[1762618312803,0.0416373,156.4,156.36,0.04142839]
[1762618313604,0.0416373,156.4,156.36,3.06142839]
[1762618314006,5.7574,156.38,156.36,3.06142839]
[1762618314704,5.7574,156.38,156.36,0.04142839]
[1762618320312,22.0,156.39,156.22,23.86125823]
[1762618320313,5.7598,156.31,156.23,3.02]
[1762618320511,64.7,156.37,156.23,3.02]
[1762618321007,64.7,156.37,156.25,3.02]
[1762618321813,64.7,156.37,156.26,2.96]
[1762618322008,5.7593,156.33,156.27,2.96]
[1762618322207,64.7,156.37,156.27,2.96]
[1762618322508,5.7598,156.31,156.27,2.96]
[1762618322709,5.7598,156.31,156.3,0.04044334]
[1762618323614,0.04038619,156.32,156.3,3.00044334]
[1762618324104,5.58433672,156.41,156.3,3.00044334]
[1762618324299,5.758,156.36,156.3,2.96]
[1762618324498,5.58433672,156.41,156.3,2.96]
[1762618325105,11.5129,156.4,156.3,2.96]
[1762618325713,0.0432933,156.37,156.33,0.04564213]
[1762618326310,5.7586,156.34,156.33,0.04564213]
[1762618326507,5.7586,156.34,156.33,3.00564213]